fUST/lending_fUST_20251028
["ID","MTS","AMOUNT","RATE_DAILY","PERIOD"]
[392547334,1761640255077,-635.6,0.00022191,2]
[392547335,1761640255087,-500.0,0.00022191,2]
[392547336,1761640255097,-922.79,0.00022191,2]
[392547337,1761640255105,-500.0,0.00022191,2]
[392547338,1761640255115,-500.0,0.00022191,2]
[392547339,1761640255124,-500.0,0.00022191,2]
[392547340,1761640255133,-1030.92,0.00022191,2]
[392547341,1761640255143,-500.0,0.00022191,2]
[392547342,1761640255152,-500.0,0.00022191,2]
[392547343,1761640255165,-500.0,0.00022191,2]
[392547344,1761640255175,-500.0,0.00022191,2]
[392547345,1761640255184,-500.0,0.00022191,2]
[392547346,1761640255194,-567.15,0.00022191,2]
[392547347,1761640255204,-500.0,0.00022191,2]
[392547348,1761640255214,-500.0,0.00022191,2]
[392547349,1761640255223,-874.68,0.00022191,2]
[392547350,1761640255232,-793.55,0.00022191,2]
[392547351,1761640255242,-500.0,0.00022191,2]
[392547352,1761640255251,-500.0,0.00022191,2]
[392547353,1761640255261,-500.0,0.00022191,2]
[392547354,1761640255271,-1907.37,0.00022191,2]
[392547355,1761640255281,-500.0,0.00022191,2]
[392547356,1761640255290,-500.0,0.00022191,2]
[392547357,1761640255301,-967.89,0.00022191,2]
[392547358,1761640255311,-500.0,0.00022191,2]
[392547359,1761640255322,-500.0,0.00022191,2]
[392547360,1761640255333,-810.13,0.00022191,2]
[392547361,1761640255343,-500.0,0.00022191,2]
[392547362,1761640255353,-500.0,0.00022191,2]
[392547363,1761640255363,-500.0,0.00022191,2]
[392547364,1761640255372,-500.0,0.00022191,2]
[392547365,1761640255382,-500.0,0.00022191,2]
[392547366,1761640255391,-1070.89,0.00022191,2]
[392547367,1761640255402,-500.0,0.00022191,2]
[392547368,1761640255412,-500.0,0.00022191,2]
[392547369,1761640255422,-500.0,0.00022191,2]
[392547370,1761640255433,-500.0,0.00022191,2]
[392547371,1761640255443,-500.0,0.00022191,2]
[392547372,1761640255453,-507.48,0.00022191,2]
[392547373,1761640255463,-778.54,0.00022191,2]
[392547374,1761640255473,-1150.54,0.00022191,2]
[392547375,1761640255483,-500.0,0.00022191,2]
[392547376,1761640255493,-537.81,0.00022191,2]
[392547377,1761640255502,-500.0,0.00022191,2]
[392547378,1761640255513,-590.54537546,0.00022191,2]
[392547379,1761640255524,-1522.88,0.00022191,2]
[392547380,1761640255533,-500.0,0.00022191,2]
[392547381,1761640255543,-585.08,0.00022191,2]
[392547382,1761640255553,-500.0,0.00022191,2]
[392547383,1761640255563,-625.69,0.00022191,2]
[392547384,1761640255574,-600.66,0.00022191,2]
[392547385,1761640255583,-500.0,0.00022191,2]
[392547386,1761640255594,-500.0,0.00022191,2]
[392547387,1761640255603,-500.0,0.00022191,2]
[392547388,1761640255613,-500.0,0.00022191,2]
[392547389,1761640255623,-500.0,0.00022191,2]
[392547390,1761640255633,-922.08,0.00022191,2]
[392547391,1761640255642,-500.0,0.00022191,2]
[392547392,1761640255652,-500.0,0.00022191,2]
[392547393,1761640255661,-500.0,0.00022191,2]
[392547394,1761640255671,-976.8,0.00022191,2]
[392547395,1761640255680,-500.0,0.00022191,2]
[392547396,1761640255689,-826.91,0.00022191,2]
[392547397,1761640255699,-500.0,0.00022191,2]
[392547398,1761640255708,-500.0,0.00022191,2]
[392547399,1761640255718,-1138.43,0.00022191,2]
[392547400,1761640255727,-500.0,0.00022191,2]
[392547401,1761640255736,-500.0,0.00022191,2]
[392547402,1761640255747,-574.19,0.00022191,2]
[392547403,1761640255758,-500.0,0.00022191,2]
[392547404,1761640255769,-704.76,0.00022191,2]
[392547405,1761640255779,-500.0,0.00022191,2]
[392547406,1761640255789,-793.66,0.00022191,2]
[392547407,1761640255799,-732.76,0.00022191,2]
[392547408,1761640255809,-500.0,0.00022191,2]
[392547409,1761640255819,-500.0,0.00022191,2]
[392547410,1761640255828,-603.51,0.00022191,2]
[392547411,1761640255839,-500.0,0.00022191,2]
[392547412,1761640255849,-500.0,0.00022191,2]
[392547413,1761640255859,-589.8,0.00022191,2]
[392547414,1761640255868,-1411.44,0.00022191,2]
[392547415,1761640255879,-978.03,0.00022191,2]
[392547416,1761640255890,-500.0,0.00022191,2]
[392547417,1761640255900,-501.57,0.00022191,2]
[392547418,1761640255910,-675.93,0.00022191,2]
[392547419,1761640255920,-500.0,0.00022191,2]
[392547420,1761640255930,-564.4,0.00022191,2]
[392547421,1761640255941,-500.0,0.00022191,2]
[392547422,1761640255952,-505.2,0.00022191,2]
[392547423,1761640255965,-805.85913942,0.00022191,2]
[392547424,1761640255974,-1646.27,0.00022191,2]
[392547425,1761640255985,-785.37,0.00022191,2]
[392547426,1761640255996,-805.84,0.00022191,2]
[392547427,1761640256007,-544.32,0.00022191,2]
[392547428,1761640256017,-500.0,0.00022191,2]
[392547429,1761640256027,-500.0,0.00022191,2]
[392547430,1761640256040,-500.0,0.00022191,2]
[392547431,1761640256050,-500.0,0.00022191,2]
[392547432,1761640256061,-500.0,0.00022191,2]
[392547433,1761640256071,-1229.64,0.00022191,2]
[392547434,1761640256081,-500.0,0.00022191,2]
[392547435,1761640256091,-554.14,0.00022191,2]
[392547436,1761640256102,-698.5,0.00022191,2]
[392547437,1761640256111,-500.0,0.00022191,2]
[392547438,1761640256121,-500.0,0.00022191,2]
[392547439,1761640256131,-500.0,0.00022191,2]
[392547440,1761640256141,-500.0,0.00022191,2]
[392547441,1761640256151,-500.0,0.00022191,2]
[392547442,1761640256161,-1319.61,0.00022191,2]
[392547443,1761640256170,-1242.31,0.00022191,2]
[392547444,1761640256180,-500.0,0.00022191,2]
[392547445,1761640256190,-1180.75,0.00022191,2]
[392547446,1761640256200,-500.0,0.00022191,2]
[392547447,1761640256211,-500.0,0.00022191,2]
[392547448,1761640256222,-500.0,0.00022191,2]
[392547449,1761640256231,-1777.35,0.00022191,2]
[392547450,1761640256241,-500.0,0.00022191,2]
[392547451,1761640256251,-500.0,0.00022191,2]
[392547452,1761640256261,-500.0,0.00022191,2]
[392547453,1761640256270,-500.0,0.00022191,2]
[392547454,1761640256280,-500.0,0.00022191,2]
[392547455,1761640256291,-500.0,0.00022191,2]
[392547456,1761640256300,-541.3141217,0.00022191,2]
[392547457,1761640256310,-500.0,0.00022191,2]
[392547458,1761640256320,-720.07,0.00022191,2]
[392547459,1761640256330,-500.0,0.00022191,2]
[392547460,1761640256340,-1303.55,0.00022191,2]
[392547461,1761640256350,-500.0,0.00022191,2]
[392547462,1761640256362,-500.0,0.00022191,2]
[392547463,1761640256371,-500.0,0.00022191,2]
[392547464,1761640256382,-585.31,0.00022191,2]
[392547465,1761640256392,-806.59,0.00022191,2]
[392547466,1761640256402,-500.0,0.00022191,2]
[392547467,1761640256415,-1112.45,0.00022191,2]
[392547468,1761640256425,-500.0,0.00022191,2]
[392547469,1761640256435,-500.0,0.00022191,2]
[392547470,1761640256444,-500.0,0.00022191,2]
[392547471,1761640256454,-335.09158037,0.00022191,2]
[392547472,1761640256464,-500.0,0.00022191,2]
[392547473,1761640256474,-500.0,0.00022191,2]
[392547474,1761640256484,-500.0,0.00022191,2]
[392547475,1761640256494,-500.0,0.00022191,2]
[392547476,1761640256504,-500.0,0.00022191,2]
[392547477,1761640256514,-1400.6,0.00022191,2]
[392547478,1761640256524,-447.10811137,0.00022191,2]
[392547479,1761640256533,-500.0,0.00022191,2]
[392547480,1761640256544,-500.0,0.00022191,2]
[392547481,1761640256554,-500.0,0.00022191,2]
[392547482,1761640256564,-500.0,0.00022191,2]
[392547483,1761640256575,-500.0,0.00022191,2]
[392547484,1761640256585,-500.0,0.00022191,2]
[392547485,1761640256595,-500.0,0.00022191,2]
[392547486,1761640256605,-500.0,0.00022191,2]
[392547487,1761640256616,-286.51216497,0.00022191,2]
[392547488,1761640256626,-733.42,0.00022191,2]
[392547489,1761640256636,-1226.7,0.00022191,2]
[392547490,1761640256645,-500.0,0.00022191,2]
[392547491,1761640256654,-500.0,0.00022191,2]
[392547492,1761640256664,-500.0,0.00022191,2]
[392547493,1761640256673,-1916.84,0.00022191,2]
[392547494,1761640256683,-539.58,0.00022191,2]
[392547495,1761640256692,-650.66,0.00022191,2]
[392547496,1761640256702,-3705.36,0.00022191,2]
[392547497,1761640256713,-500.0,0.00022191,2]
[392547498,1761640256724,-500.0,0.00022191,2]
[392547499,1761640256734,-500.0,0.00022191,2]
[392547500,1761640256743,-500.0,0.00022191,2]
[392547501,1761640256754,-1451.02,0.00022191,2]
[392547502,1761640256764,-1616.65,0.00022191,2]
[392547503,1761640256773,-500.0,0.00022191,2]
[392547504,1761640256782,-741.53,0.00022191,2]
[392547505,1761640256792,-1844.96,0.00022191,2]
[392547506,1761640256802,-1272.38,0.00022191,2]
[392547507,1761640256812,-500.0,0.00022191,2]
[392547508,1761640256821,-609.72,0.00022191,2]
[392547509,1761640256831,-308.1197899,0.00022191,2]
[392547510,1761640256842,-500.0,0.00022191,2]
[392547511,1761640256852,-500.0,0.00022191,2]
[392547512,1761640256862,-619.81,0.00022191,2]
[392547513,1761640256873,-3461.07,0.00022191,2]
[392547514,1761640256884,-1197.46,0.00022191,2]
[392547515,1761640256894,-500.0,0.00022191,2]
[392547516,1761640256905,-500.0,0.00022191,2]
[392547517,1761640256915,-500.0,0.00022191,2]
[392547518,1761640256925,-500.0,0.00022191,2]
[392547519,1761640256935,-500.0,0.00022191,2]
[392547520,1761640256944,-500.0,0.00022191,2]
[392547521,1761640256954,-500.0,0.00022191,2]
[392547522,1761640256968,-725.56,0.00022191,2]
[392547523,1761640256978,-500.0,0.00022191,2]
[392547524,1761640256988,-500.0,0.00022191,2]
[392547525,1761640256998,-500.0,0.00022191,2]
[392547526,1761640257008,-1713.59,0.00022191,2]
[392547527,1761640257018,-320.1797647,0.00022191,2]
[392547528,1761640257028,-500.0,0.00022191,2]
[392547529,1761640257038,-671.88,0.00022191,2]
[392547530,1761640257047,-933.63,0.00022191,2]
[392547531,1761640257056,-500.0,0.00022191,2]
[392547532,1761640257066,-751.51,0.00022191,2]
[392547533,1761640257076,-500.0,0.00022191,2]
[392547534,1761640257085,-640.33,0.00022191,2]
[392547535,1761640257095,-500.0,0.00022191,2]
[392547536,1761640257105,-7538.5,0.00022191,2]
[392547537,1761640257114,-433.49330707,0.00022191,2]
[392547538,1761640257124,-500.0,0.00022191,2]
[392547539,1761640257134,-626.51,0.00022191,2]
[392547540,1761640257143,-500.0,0.00022191,2]
[392547541,1761640257153,-823.77,0.00022191,2]
[392547542,1761640257162,-500.0,0.00022191,2]
[392547543,1761640257172,-500.0,0.00022191,2]
[392547544,1761640257181,-1252.03,0.00022191,2]
[392547545,1761640257191,-1745.51,0.00022191,2]
[392547546,1761640257201,-500.0,0.00022191,2]
[392547547,1761640257210,-649.22774918,0.00022191,2]
[392547548,1761640257220,-500.0,0.00022191,2]
[392547549,1761640257231,-951.53,0.00022191,2]
[392547550,1761640257240,-594.5,0.00022191,2]
[392547551,1761640257249,-861.57,0.00022191,2]
[392547552,1761640257258,-500.0,0.00022191,2]
[392547553,1761640257267,-621.87,0.00022191,2]
[392547554,1761640257276,-2477.74,0.00022191,2]
[392547555,1761640257286,-386.93392748,0.00022191,2]
[392547556,1761640257295,-500.0,0.00022191,2]
[392547557,1761640257304,-1332.22,0.00022191,2]
[392547558,1761640257315,-500.0,0.00022191,2]
[392547559,1761640257325,-500.0,0.00022191,2]
[392547560,1761640257334,-556.32,0.00022191,2]
[392547561,1761640257344,-1491.95,0.00022191,2]
[392547562,1761640257353,-1862.87,0.00022191,2]
[392547563,1761640257363,-500.0,0.00022191,2]
[392547564,1761640257372,-2096.95,0.00022191,2]
[392547565,1761640257382,-965.65,0.00022191,2]
[392547566,1761640257392,-500.0,0.00022191,2]
[392547567,1761640257402,-665.18,0.00022191,2]
[392547568,1761640257411,-1078.94,0.00022191,2]
[392547569,1761640257421,-500.0,0.00022191,2]
[392547570,1761640257431,-500.0,0.00022191,2]
[392547571,1761640257441,-500.0,0.00022191,2]
[392547572,1761640257451,-506.83095443,0.00022191,2]
[392547573,1761640257460,-500.0,0.00022191,2]
[392547574,1761640257470,-1151.36,0.00022191,2]
[392547575,1761640257651,-1446.18,0.00022191,2]
[392547576,1761640257661,-500.0,0.00022191,2]
[392547577,1761640257670,-500.0,0.00022191,2]
[392547578,1761640257681,-517.71,0.00022191,2]
[392547579,1761640257690,-1739.18,0.00022191,2]
[392547580,1761640257702,-1259.32,0.00022191,2]
[392547581,1761640257712,-536.46,0.00022191,2]
[392547582,1761640257722,-500.0,0.00022191,2]
[392547583,1761640257732,-639.52,0.00022191,2]
[392547584,1761640257742,-596.96,0.00022191,2]
[392547585,1761640257752,-500.0,0.00022191,2]
[392547586,1761640257762,-500.0,0.00022191,2]
[392547587,1761640257773,-1389.55,0.00022191,2]
[392547588,1761640257783,-1999.05,0.00022191,2]
[392547589,1761640257793,-500.0,0.00022191,2]
[392547590,1761640257803,-1796.42,0.00022191,2]
[392547591,1761640257813,-500.0,0.00022191,2]
[392547592,1761640257826,-500.0,0.00022191,2]
[392547593,1761640257835,-500.0,0.00022191,2]
[392547594,1761640257845,-500.0,0.00022191,2]
[392547595,1761640257856,-519.99,0.00022191,2]
[392547596,1761640257867,-741.47,0.00022191,2]
[392547597,1761640257878,-1195.67,0.00022191,2]
[392547598,1761640257888,-1178.08,0.00022191,2]
[392547599,1761640257899,-2427.11,0.00022191,2]
[392547600,1761640257909,-436.42254161,0.00022191,2]
[392547601,1761640257918,-2010.51,0.00022191,2]
[392547602,1761640257928,-500.0,0.00022191,2]
[392547603,1761640257937,-500.0,0.00022191,2]
[392547604,1761640257946,-1145.63,0.00022191,2]
[392547605,1761640257957,-500.0,0.00022191,2]
[392547606,1761640257969,-3732.65,0.00022191,2]
[392547607,1761640257979,-500.0,0.00022191,2]
[392547608,1761640257988,-500.0,0.00022191,2]
[392547609,1761640257998,-583.28,0.00022191,2]
[392547610,1761640258008,-500.0,0.00022191,2]
[392547611,1761640258017,-500.0,0.00022191,2]
[392547612,1761640258026,-500.0,0.00022191,2]
[392547613,1761640258036,-500.0,0.00022191,2]
[392547614,1761640258046,-567.58,0.00022191,2]
[392547615,1761640258055,-640.04,0.00022191,2]
[392547616,1761640258064,-500.0,0.00022191,2]
[392547617,1761640258073,-2225.91,0.00022191,2]
[392547618,1761640258082,-500.0,0.00022191,2]
[392547619,1761640258093,-529.29,0.00022191,2]
[392547620,1761640258102,-500.0,0.00022191,2]
[392547621,1761640258113,-1617.08,0.00022191,2]
[392547622,1761640258122,-978.05,0.00022191,2]
[392547623,1761640258132,-584.93,0.00022191,2]
[392547624,1761640258141,-500.0,0.00022191,2]
[392547625,1761640258150,-516.64,0.00022191,2]
[392547626,1761640258159,-500.0,0.00022191,2]
[392547627,1761640258169,-2624.84,0.00022191,2]
[392547628,1761640258177,-739.92,0.00022191,2]
[392547629,1761640258187,-500.0,0.00022191,2]
[392547630,1761640258196,-500.0,0.00022191,2]
[392547631,1761640258205,-1150.22,0.00022191,2]
[392547632,1761640258214,-1012.27,0.00022191,2]
[392547633,1761640258223,-836.6,0.00022191,2]
[392547634,1761640258232,-516.35,0.00022191,2]
[392547635,1761640258242,-504.91,0.00022191,2]
[392547636,1761640258251,-500.0,0.00022191,2]
[392547637,1761640258260,-500.0,0.00022191,2]
[392547638,1761640258269,-563.76,0.00022191,2]
[392547639,1761640258278,-998.13,0.00022191,2]
[392547640,1761640258287,-500.0,0.00022191,2]
[392547641,1761640258297,-500.0,0.00022191,2]
[392547642,1761640258306,-500.0,0.00022191,2]
[392547643,1761640258315,-871.06,0.00022191,2]
[392547644,1761640258324,-2917.82,0.00022191,2]
[392547645,1761640258333,-500.0,0.00022191,2]
[392547646,1761640258344,-2907.55,0.00022191,2]
[392547647,1761640258353,-500.0,0.00022191,2]
[392547648,1761640258362,-1658.67,0.00022191,2]
[392547649,1761640258372,-821.9,0.00022191,2]
[392547650,1761640258381,-500.0,0.00022191,2]
[392547651,1761640258390,-4703.01,0.00022191,2]
[392547652,1761640258399,-500.0,0.00022191,2]
[392547653,1761640258408,-1961.75,0.00022191,2]
[392547654,1761640258418,-18267.81,0.00022191,2]
[392547655,1761640258427,-557.75451724,0.00022191,2]
[392547656,1761640258436,-500.0,0.00022191,2]
[392547657,1761640258445,-500.0,0.00022191,2]
[392547658,1761640258454,-1110.04,0.00022191,2]
[392547659,1761640258463,-1326.97,0.00022191,2]
[392547660,1761640258472,-500.0,0.00022191,2]
[392547661,1761640258482,-553.27,0.00022191,2]
[392547662,1761640258491,-500.0,0.00022191,2]
[392547663,1761640258501,-2211.0,0.00022191,2]
[392547664,1761640258511,-580.83855898,0.00022191,2]
[392547665,1761640258520,-500.0,0.00022191,2]
[392547666,1761640258530,-922.62,0.00022191,2]
[392547667,1761640258540,-500.0,0.00022191,2]
[392547668,1761640258549,-500.0,0.00022191,2]
[392547669,1761640258559,-500.0,0.00022191,2]
[392547670,1761640258568,-500.0,0.00022191,2]
[392547671,1761640258578,-500.0,0.00022191,2]
[392547672,1761640258588,-500.0,0.00022191,2]
[392547673,1761640258598,-273.9886897,0.00022191,2]
[392547674,1761640258607,-1233.49,0.00022191,2]
[392547675,1761640258619,-1984.4,0.00022191,2]
[392547676,1761640258628,-1454.22,0.00022191,2]
[392547677,1761640258638,-500.0,0.00022191,2]
[392547678,1761640258648,-500.0,0.00022191,2]
[392547679,1761640258658,-1547.06,0.00022191,2]
[392547680,1761640258667,-563.61,0.00022191,2]
[392547681,1761640258680,-745.71,0.00022191,2]
[392547682,1761640258690,-500.0,0.00022191,2]
[392547683,1761640258700,-1106.83,0.00022191,2]
[392547684,1761640258710,-168.0,0.00022196,2]
[392547685,1761640258719,-48904.65,0.000222,7]
[392547686,1761640258729,-168.0,0.00022203,2]
[392547687,1761640258739,-1400.0,0.00022224,2]
[392547688,1761640258748,-168.0,0.00022264,2]
[392547689,1761640258758,-8003.69333584,0.00022365,2]
[392547690,1761640258767,-176.0,0.00022384,7]
[392547691,1761640258777,-526.47,0.00022465,2]
[392547692,1761640258786,-500.0,0.00022465,2]
[392547693,1761640258796,-517.25549927,0.00022465,2]
[392547694,1761640258806,-500.0,0.00022465,2]
[392547695,1761640258815,-500.0,0.00022465,2]
[392547696,1761640258824,-500.0,0.00022465,2]
[392547697,1761640258833,-470.57979541,0.00022465,2]
[392547698,1761640258843,-700.14,0.00022465,2]
[392547699,1761640258853,-500.0,0.00022465,2]
[392547700,1761640258862,-500.0,0.00022465,2]
[392547701,1761640258871,-500.0,0.00022465,2]
[392547702,1761640258882,-500.0,0.00022465,2]
[392547703,1761640258892,-500.0,0.00022465,2]
[392547704,1761640258902,-650.49,0.00022465,2]
[392547705,1761640258911,-500.0,0.00022465,2]
[392547706,1761640258921,-500.0,0.00022465,2]
[392547707,1761640258930,-821.3,0.00022465,2]
[392547708,1761640258940,-500.0,0.00022465,2]
[392547709,1761640258950,-500.0,0.00022465,2]
[392547710,1761640258961,-883.33,0.00022465,2]
[392547711,1761640258971,-559.22,0.00022465,2]
[392547712,1761640258982,-500.0,0.00022465,2]
[392547713,1761640258991,-500.0,0.00022465,2]
[392547714,1761640259001,-795.1,0.00022465,2]
[392547715,1761640259010,-500.0,0.00022465,2]
[392547716,1761640259020,-500.0,0.00022465,2]
[392547717,1761640259030,-500.0,0.00022465,2]
[392547718,1761640259039,-500.0,0.00022465,2]
[392547719,1761640259048,-500.0,0.00022465,2]
[392547720,1761640259058,-500.0,0.00022465,2]
[392547721,1761640259067,-500.0,0.00022465,2]
[392547722,1761640259077,-500.0,0.00022465,2]
[392547723,1761640259087,-500.0,0.00022465,2]
[392547724,1761640259096,-484.68248708,0.00022465,2]
[392547725,1761640259106,-500.0,0.00022465,2]
[392547726,1761640259116,-500.0,0.00022465,2]
[392547727,1761640259125,-500.0,0.00022465,2]
[392547728,1761640259135,-601.53,0.00022465,2]
[392547729,1761640259145,-244.59147577,0.00022465,2]
[392547730,1761640259154,-500.0,0.00022465,2]
[392547731,1761640259164,-539.11,0.00022465,2]
[392547732,1761640259174,-500.0,0.00022465,2]
[392547733,1761640259184,-500.0,0.00022465,2]
[392547734,1761640259194,-500.0,0.00022465,2]
[392547735,1761640259204,-500.0,0.00022465,2]
[392547736,1761640259213,-500.0,0.00022465,2]
[392547737,1761640259223,-1102.48,0.00022465,2]
[392547738,1761640259233,-533.85,0.00022465,2]
[392547739,1761640259242,-500.0,0.00022465,2]
[392547740,1761640259252,-500.0,0.00022465,2]
[392547741,1761640259261,-500.0,0.00022465,2]
[392547742,1761640259271,-666.47,0.00022465,2]
[392547743,1761640259281,-509.62869031,0.00022465,2]
[392547744,1761640259290,-500.0,0.00022465,2]
[392547745,1761640259300,-500.0,0.00022465,2]
[392547746,1761640259309,-500.0,0.00022465,2]
[392547747,1761640259319,-500.0,0.00022465,2]
[392547748,1761640259329,-500.0,0.00022465,2]
[392547749,1761640259339,-500.0,0.00022465,2]
[392547750,1761640259349,-500.0,0.00022465,2]
[392547751,1761640259358,-500.0,0.00022465,2]
[392547752,1761640259369,-500.0,0.00022465,2]
[392547753,1761640259379,-500.0,0.00022465,2]
[392547754,1761640259389,-500.0,0.00022465,2]
[392547755,1761640259400,-532.55009042,0.00022465,2]
[392547756,1761640259411,-500.0,0.00022465,2]
[392547757,1761640259422,-500.0,0.00022465,2]
[392547758,1761640259431,-500.0,0.00022465,2]
[392547759,1761640259440,-500.0,0.00022465,2]
[392547760,1761640259451,-500.0,0.00022465,2]
[392547761,1761640259461,-500.0,0.00022465,2]
[392547762,1761640259471,-500.0,0.00022465,2]
[392547763,1761640259481,-500.0,0.00022465,2]
[392547764,1761640259491,-500.0,0.00022465,2]
[392547765,1761640259501,-500.0,0.00022465,2]
[392547766,1761640259511,-500.0,0.00022465,2]
[392547767,1761640259522,-5260.13,0.00022465,2]
[392547768,1761640259532,-500.0,0.00022465,2]
[392547769,1761640259544,-533.68,0.00022465,2]
[392547770,1761640259553,-500.0,0.00022465,2]
[392547771,1761640259564,-632.82,0.00022465,2]
[392547772,1761640259573,-500.0,0.00022465,2]
[392547773,1761640259584,-500.0,0.00022465,2]
[392547774,1761640259593,-500.0,0.00022465,2]
[392547775,1761640259603,-902.27,0.00022465,2]
[392547776,1761640259613,-1098.98,0.00022465,2]
[392547777,1761640259622,-1099.04,0.00022465,2]
[392547778,1761640259632,-897.28,0.00022465,2]
[392547779,1761640259642,-500.0,0.00022465,2]
[392547780,1761640259651,-500.0,0.00022465,2]
[392547781,1761640259662,-589.45,0.00022465,2]
[392547782,1761640259672,-585.59,0.00022465,2]
[392547783,1761640259681,-529.22,0.00022465,2]
[392547784,1761640259690,-622.46,0.00022465,2]
[392547785,1761640259700,-500.0,0.00022465,2]
[392547786,1761640259713,-500.0,0.00022465,2]
[392547787,1761640259725,-766.85,0.00022465,2]
[392547788,1761640259735,-500.0,0.00022465,2]
[392547789,1761640259745,-500.0,0.00022465,2]
[392547790,1761640259755,-500.0,0.00022465,2]
[392547791,1761640259765,-695.96,0.00022465,2]
[392547792,1761640259776,-920.11,0.00022465,2]
[392547793,1761640259787,-635.6,0.00022465,2]
[392547794,1761640259796,-500.0,0.00022465,2]
[392547795,1761640259807,-922.79,0.00022465,2]
[392547796,1761640259817,-500.0,0.00022465,2]
[392547797,1761640259828,-500.0,0.00022465,2]
[392547798,1761640259838,-500.0,0.00022465,2]
[392547799,1761640259848,-1030.92,0.00022465,2]
[392547800,1761640259858,-500.0,0.00022465,2]
[392547801,1761640259868,-500.0,0.00022465,2]
[392547802,1761640259877,-500.0,0.00022465,2]
[392547803,1761640259887,-500.0,0.00022465,2]
[392547804,1761640259896,-500.0,0.00022465,2]
[392547805,1761640259906,-567.15,0.00022465,2]
[392547806,1761640259915,-500.0,0.00022465,2]
[392547807,1761640259924,-500.0,0.00022465,2]
[392547808,1761640259934,-874.68,0.00022465,2]
[392547809,1761640259944,-793.55,0.00022465,2]
[392547810,1761640259953,-500.0,0.00022465,2]
[392547811,1761640259967,-484.44676013,0.00022465,2]
[392547812,1761640259977,-500.0,0.00022465,2]
[392547813,1761640259986,-1907.37,0.00022465,2]
[392547814,1761640259996,-500.0,0.00022465,2]
[392547815,1761640260007,-500.0,0.00022465,2]
[392547816,1761640260017,-967.89,0.00022465,2]
[392547817,1761640260026,-500.0,0.00022465,2]
[392547818,1761640260039,-500.0,0.00022465,2]
[392547819,1761640260049,-810.13,0.00022465,2]
[392547820,1761640260060,-500.0,0.00022465,2]
[392547821,1761640260070,-386.79833715,0.00022465,2]
[392547822,1761640260080,-500.0,0.00022465,2]
[392547823,1761640260091,-500.0,0.00022465,2]
[392547824,1761640260099,-500.0,0.00022465,2]
[392547825,1761640260109,-1070.89,0.00022465,2]
[392547826,1761640260119,-500.0,0.00022465,2]
[392547827,1761640260129,-500.0,0.00022465,2]
[392547828,1761640260187,-500.0,0.00022465,2]
[392547829,1761640260199,-500.0,0.00022465,2]
[392547830,1761640260209,-500.0,0.00022465,2]
[392547831,1761640260218,-507.48,0.00022465,2]
[392547832,1761640260227,-778.54,0.00022465,2]
[392547833,1761640260237,-1150.54,0.00022465,2]